[Event "Haarlemse Meesters-IM 2018"]
[Site "Haarlem"]
[Date "2018.10.22"]
[Round "3"]
[White "Lenaerts, Lennert"]
[Black "Gijswijt, Bart"]
[Result "1/2-1/2"]
[ECO "E33"]
[WhiteElo "2362"]
[BlackElo "2321"]
[Annotator "NA"]
[PlyCount "102"]
[EventDate "2018.10.17"]
[EventType "tourn"]
[EventCountry "NED"]
[SourceTitle "playchess.com"]
[Source "ChessBase"]
[SourceQuality "1"]
[TimeControl "40/5400+30:1800+30"]

1. d4 {[%emt 0:00:00]} Nf6 {[%emt 0:00:00]} 2. c4 {[%emt 0:00:00]} e6 {[%emt 0:00:00]} 3. Nc3 {[%emt 0:00:00]} Bb4 {[%emt 0:00:10]} 4. Qc2 {[%emt 0:00:00]} Nc6 {[%emt 0:00:41]} 5. Nf3 {[%emt 0:00:44]} d5 {[%emt 0:00:28]} 6. cxd5 {[%emt 0:07:04]} exd5 {[%emt 0:00:59]} 7. Bg5 {[%emt 0:06:36]} h6 {[%emt 0:05:06]} 8. Bxf6 {[%emt 0:00:25] LiveBook: 16 Games} Qxf6 {[%emt 0:00:10]} 9. a3 {[%emt 0:00:19] E33: Nimzo-Indian: Classical: 4...Nc6} (9. e3 Be6 10. a3 Bd6 11. Nb5 O-O 12. Be2 Rfc8 13. O-O Bf8 14. Rac1 a6 15. Nc3 Ne7 16. Na4 b6 {1-0 (35) Jojua,D (2507)-Fier,A (2599) Cappelle-la-Grande 2012}) 9... Bxc3+ {[%emt 0:14:25]} 10. bxc3 {[%emt 0:00:26]} Bf5 {[%emt 0:09:37]} 11. Qb3 {[%emt 0:04:37]} O-O-O {[%emt 0:01:03]} 12. e3 {[%emt 0:03:47]} Be4 $146 {[%emt 0:07:32]} ({Predecessor:} 12... h5 13. Bb5 {0-1 (30) Natal Gomes,M (1485)-Clontz,A (1567) FICGS email 2010}) 13. Nd2 {[%emt 0:11:08]} Qg6 {[%emt 0:03:11]} 14. Nxe4 {[%emt 0:16:37]} Qxe4 {[%emt 0:00:29]} 15. Qb1 {[%emt 0:00:55]} Qxb1+ {[%emt 0:09:27]} 16. Rxb1 {[%emt 0:00:01]} Ne7 {[%emt 0:00:52]} 17. Bd3 {[%emt 0:03:58]} Rd6 {[%emt 0:03:18]} 18. Kd2 {[%emt 0:00:19]} Rb6 {[%emt 0:02:13]} 19. Rb4 {[%emt 0:01:44]} Nc6 {[%emt 0:06:12]} 20. Rb5 {[%emt 0:00:09]} Rxb5 {[%emt 0:02:33]} 21. Bxb5 {[%emt 0:00:03]} Ne7 {[%emt 0:00:17]} 22. Bd3 {[%emt 0:00:07]} Rd8 {[%emt 0:00:32]} 23. Rb1 {[%emt 0:00:26]} Rd6 {[%emt 0:00:58]} 24. f3 {[%emt 0:00:08]} Rb6 {[%emt 0:00:44]} 25. Rxb6 {[%emt 0:00:40]} axb6 {[%emt 0:00:09]} 26. e4 {[%emt 0:00:05]} c6 {[%emt 0:10:39]} 27. a4 {[%emt 0:01:35]} Kc7 {[%emt 0:01:43]} 28. e5 {[%emt 0:01:06]} Kd7 {[%emt 0:07:25]} 29. f4 {[%emt 0:01:23]} f5 {[%emt 0:03:38]} 30. exf6 {[%emt 0:19:08]} gxf6 {[%emt 0:00:02]} 31. g4 {[%emt 0:00:07]} Kd6 {[%emt 0:02:15]} 32. h4 {[%emt 0:04:22]} Nc8 {[%emt 0:00:34]} 33. Ke3 {[%emt 0:01:13]} Ke7 {[%emt 0:00:48]} 34. g5 {[%emt 0:00:47]} fxg5 {[%emt 0:00:21]} 35. fxg5 {[%emt 0:00:05]} hxg5 {[%emt 0:00:27]} 36. hxg5 {[%emt 0:00:02]} Ke6 {[%emt 0:02:18]} 37. Kf4 {[%emt 0:00:15]} Ne7 {[%emt 0:00:09]} 38. Kg4 {[%emt 0:03:50]} c5 {[%emt 0:02:32]} 39. Kh5 {[%emt 0:02:21]} cxd4 {[%emt 0:00:09]} 40. cxd4 {[%emt 0:00:31]} Nc6 {[%emt 0:00:24]} 41. Kh6 {[%emt 0:30:55]} Nxd4 {[%emt 0:31:43]} 42. g6 {[%emt 0:00:01]} Nc6 {[%emt 0:00:16]} 43. g7 {[%emt 0:00:05]} Ne7 {[%emt 0:00:39]} 44. Kh7 {[%emt 0:00:26]} Kd6 {[%emt 0:00:59]} 45. g8=Q {[%emt 0:01:42]} Nxg8 {[%emt 0:00:05]} 46. Kxg8 {[%emt 0:00:04]} Kc5 {[%emt 0:00:10]} 47. Kf7 {[%emt 0:00:02]} Kb4 $11 {[%emt 0:00:10]} 48. Bb5 {[%emt 0:00:07]} d4 {[%emt 0:00:07]} 49. Ke6 {[%emt 0:00:02]} d3 {[%emt 0:00:28]} 50. Bxd3 {[%emt 0:00:05]} Kxa4 {[%emt 0:00:07]} 51. Be4 {[%emt 0:00:03]} Kb4 {[%emt 0:00:53]} 1/2-1/2

[Event "Haarlemse Meesters-IM 2018"]
[Site "Haarlem"]
[Date "2018.10.22"]
[Round "3"]
[White "Vedder, Richard"]
[Black "Daeschler, Florian"]
[Result "1-0"]
[ECO "D34"]
[WhiteElo "2288"]
[BlackElo "2254"]
[Annotator "NA"]
[PlyCount "133"]
[EventDate "2018.10.17"]
[EventType "tourn"]
[EventCountry "NED"]
[SourceTitle "playchess.com"]
[Source "ChessBase"]
[SourceQuality "1"]
[TimeControl "40/5400+30:1800+30"]

1. d4 {[%emt 0:00:00]} d5 {[%emt 0:00:00]} 2. c4 {[%emt 0:00:00]} e6 {[%emt 0:00:00]} 3. Nc3 {[%emt 0:00:00]} c5 {[%emt 0:00:00]} 4. cxd5 {[%emt 0:00:00]} exd5 {[%emt 0:00:00]} 5. Nf3 {[%emt 0:00:00]} Nc6 {[%emt 0:00:00]} 6. g3 {[%emt 0:00:12]} Nf6 {[%emt 0:00:01]} 7. Bg2 {[%emt 0:00:07]} Be7 {[%emt 0:00:03]} 8. O-O {[%emt 0:00:40]} O-O {[%emt 0:00:05]} 9. dxc5 {[%emt 0:01:50]} Bxc5 {[%emt 0:00:15]} 10. Bg5 {[%emt 0:02:44]} d4 {[%emt 0:00:06]} 11. Bxf6 {[%emt 0:00:36] D34: Damengambit (Tarrasch-Verteidigung, Hauptvariante)} (11. Ne4 Be7 12. Bxf6 Bxf6 13. Nxf6+ Qxf6 14. b4 Rd8 15. b5 Ne5 16. Rc1 Bg4 17. Nxd4 Rxd4 18. Qxd4 Nf3+ 19. exf3 Qxd4 20. fxg4 Qb6 21. Rfd1 Qxb5 {½-½ (81) Aronian,L (2797)-Wang,Y (2720) Beijing 2014}) 11... Qxf6 {[%emt 0:00:06]} 12. Nd5 {[%emt 0:00:29] LiveBook: 492 Games} Qf5 {[%emt 0:00:10]} 13. Nf4 {[%emt 0:06:54]} Bb6 {[%emt 0:03:10]} 14. Rc1 {[%emt 0:01:41]} Qb5 {[%emt 0:02:34]} 15. b3 $146 {[%emt 0:10:45]} ({Vorgänger:} 15. Nd3 Be6 16. a4 Qf5 17. b4 Rfd8 18. a5 Bc7 19. a6 Bc8 20. axb7 Bxb7 21. Nc5 Bc8 22. Nh4 Qf6 23. Nd3 Bb7 24. b5 {1-0 (24) Acciaioli,F-Woodhouse,S (1719) ICCF email 2015}) 15... Rd8 {[%emt 0:16:14]} 16. a4 {[%emt 0:06:00]} Qa6 {[%emt 0:23:18]} ({Better is} 16... Qf5 $14) 17. Qc2 {[%emt 0:08:15]} d3 {[%emt 0:02:34]} 18. Nxd3 {[%emt 0:03:48]} Bf5 {[%emt 0:00:28]} 19. Rfd1 {[%emt 0:16:42]} Be4 {[%emt 0:14:56]} (19... Rd6 $14) 20. Qc4 {[%emt 0:09:42]} Qxc4 {[%emt 0:02:58]} 21. bxc4 {[%emt 0:00:01]} Na5 {[%emt 0:02:29]} 22. c5 {[%emt 0:01:44]} Bc7 {[%emt 0:00:52]} 23. Ng5 {[%emt 0:01:30]} Bxg2 {[%emt 0:03:43]} 24. Kxg2 {[%emt 0:00:02]} Rd4 {[%emt 0:00:07]} 25. Ra1 {[%emt 0:01:09]} Rad8 {[%emt 0:00:53]} 26. Rdb1 {[%emt 0:00:54]} Re8 {[%emt 0:04:39]} 27. Ra2 {[%emt 0:02:32]} Bd8 {[%emt 0:02:11]} 28. Nf3 {[%emt 0:00:42]} Rde4 {[%emt 0:00:09]} 29. e3 {[%emt 0:00:59]} Bf6 {[%emt 0:00:41]} 30. Nd2 {[%emt 0:12:11]} R4e7 {[%emt 0:00:55]} 31. Nf4 {[%emt 0:01:07]} Rd7 {[%emt 0:00:21]} 32. Kf3 {[%emt 0:00:57]} Be5 {[%emt 0:03:44]} 33. Rb5 {[%emt 0:01:14]} Bc3 {[%emt 0:06:24]} 34. Ne4 {[%emt 0:00:48]} a6 {[%emt 0:00:34]} 35. Nxc3 {[%emt 0:01:45]} axb5 {[%emt 0:00:05]} 36. axb5 {[%emt 0:00:02]} Nb3 {[%emt 0:00:21]} 37. c6 {[%emt 0:00:31]} bxc6 {[%emt 0:00:03]} 38. bxc6 {[%emt 0:00:02]} Rd6 {[%emt 0:02:43]} 39. Nfd5 {[%emt 0:03:07]} Kf8 {[%emt 0:06:12]} 40. c7 {[%emt 0:00:11]} Nc5 {[%emt 0:01:02]} 41. Rc2 {[%emt 0:12:26]} Rc8 {[%emt 0:04:21]} 42. e4 {[%emt 0:00:39]} Ne6 {[%emt 0:09:00]} 43. Nb5 {[%emt 0:00:34]} Ra6 {[%emt 0:08:32]} 44. Ke3 {[%emt 0:01:07]} Ra5 {[%emt 0:06:38]} 45. Nd6 {[%emt 0:01:17]} Rxd5 {[%emt 0:01:00]} 46. Nxc8 {[%emt 0:00:18]} Rd7 {[%emt 0:00:07]} 47. Nb6 {[%emt 0:03:26]} Rxc7 {[%emt 0:00:06]} 48. Rxc7 {[%emt 0:00:05]} Nxc7 {[%emt 0:00:03]} 49. f4 {[%emt 0:00:15]} Ne6 {[%emt 0:00:25]} 50. f5 {[%emt 0:00:29]} Nd8 $18 {[%emt 0:01:55]} 51. e5 {[%emt 0:00:16]} Ke7 {[%emt 0:01:37]} 52. Ke4 {[%emt 0:00:07]} Nc6 {[%emt 0:00:59]} 53. h4 {[%emt 0:03:37]} h6 {[%emt 0:03:44]} 54. h5 {[%emt 0:03:09]} Nd8 {[%emt 0:02:12]} 55. Kd5 {[%emt 0:01:59]} Nb7 {[%emt 0:00:49]} 56. Nc8+ {[%emt 0:00:37]} Kd7 {[%emt 0:00:21]} 57. Nd6 {[%emt 0:00:18]} Nd8 {[%emt 0:00:37]} 58. Nxf7 {[%emt 0:00:48]} Nxf7 {[%emt 0:00:03]} 59. e6+ {[%emt 0:00:05]} Ke7 {[%emt 0:00:02]} 60. exf7 {[%emt 0:00:05]} Kxf7 {[%emt 0:00:03]} 61. Ke5 {[%emt 0:00:08]} Ke7 {[%emt 0:00:11]} 62. f6+ {[%emt 0:03:13]} gxf6+ {[%emt 0:00:16]} 63. Kf5 {[%emt 0:00:01]} Kf7 {[%emt 0:00:10]} 64. g4 {[%emt 0:00:04]} Ke7 {[%emt 0:01:55]} 65. Kg6 {[%emt 0:00:06]} Ke6 {[%emt 0:00:04]} 66. Kxh6 {[%emt 0:00:26]} f5 {[%emt 0:00:27]} 67. g5 {[%emt 0:00:37]} 1-0

[Event "Haarlemse Meesters-IM 2018"]
[Site "Haarlem"]
[Date "2018.10.22"]
[Round "3"]
[White "Van Baar, Esper"]
[Black "Basman, Michael J"]
[Result "0-1"]
[ECO "B00"]
[WhiteElo "2223"]
[BlackElo "2313"]
[Annotator "NA"]
[PlyCount "74"]
[EventDate "2018.10.17"]
[EventType "tourn"]
[EventCountry "NED"]
[SourceTitle "playchess.com"]
[Source "ChessBase"]
[SourceQuality "1"]
[TimeControl "40/5400+30:1800+30"]

1. e4 {[%emt 0:00:00]} g5 {[%emt 0:00:00]} 2. d4 {[%emt 0:00:00]} h6 {[%emt 0:00:00]} 3. h4 {[%emt 0:00:02]} g4 {[%emt 0:00:00] B00: Queen's Fianchetto Defence, Nimzowitsch Defence} 4. Qxg4 {[%emt 0:00:18]} d5 {[%emt 0:00:00]} 5. Qf4 {[%emt 0:00:18]} dxe4 {[%emt 0:00:00]} 6. Nc3 {[%emt 0:01:26]} Nf6 {[%emt 0:08:02]} 7. Be3 $146 {[%emt 0:08:22]} ({Predecessor:} 7. Nxe4 Qxd4 8. Nxf6+ Qxf6 9. Qxf6 exf6 10. Bf4 c6 11. O-O-O {1-0 (48) Camacho,C (2248)-Valverde Lopez,M (2021) Remote email 2014}) 7... Rg8 {[%emt 0:07:39]} 8. Nxe4 {[%emt 0:07:22]} Nd5 $1 {[%emt 0:03:30]} 9. Qe5 {[%emt 0:24:00]} (9. Qf3 $16) 9... Rg6 {[%emt 0:07:15]} 10. Nc3 {[%emt 0:04:34]} Nxc3 {[%emt 0:16:12]} 11. bxc3 {[%emt 0:00:10]} Nc6 {[%emt 0:03:43]} 12. Qe4 {[%emt 0:01:49]} Be6 {[%emt 0:04:23]} 13. h5 {[%emt 0:05:07]} Rg4 {[%emt 0:03:06]} 14. Qf3 {[%emt 0:01:59]} Qd7 {[%emt 0:02:51]} 15. Be2 {[%emt 0:03:07]} Rg8 {[%emt 0:01:13]} 16. Bd3 {[%emt 0:08:14]} O-O-O {[%emt 0:03:53]} 17. Ne2 {[%emt 0:04:06]} Bd5 {[%emt 0:03:16]} 18. Be4 {[%emt 0:00:34]} Bxe4 {[%emt 0:01:34]} 19. Qxe4 {[%emt 0:00:03]} f5 {[%emt 0:04:22]} 20. Qf4 {[%emt 0:04:07]} (20. Qd3 $11) 20... e5 {[%emt 0:04:24]} 21. dxe5 {[%emt 0:00:36]} Rg4 {[%emt 0:00:09]} 22. Qh2 {[%emt 0:05:22]} Qd5 {[%emt 0:03:20]} 23. f3 {[%emt 0:02:27]} Rg8 {[%emt 0:01:45]} 24. Bd4 {[%emt 0:04:19]} Na5 {[%emt 0:03:17]} 25. Nf4 {[%emt 0:02:03]} (25. Qh3 $16) 25... Qc4 {[%emt 0:00:41]} 26. Qh3 {[%emt 0:00:54]} c5 {[%emt 0:00:22]} 27. Qxf5+ {[%emt 0:00:15]} Kb8 {[%emt 0:00:01]} 28. e6 {[%emt 0:04:46]} cxd4 {[%emt 0:02:08]} 29. Qxa5 {[%emt 0:00:51]} Bd6 $19 {[%emt 0:00:07]} 30. e7 {[%emt 0:05:20]} Rde8 {[%emt 0:01:14]} 31. Ng6 {[%emt 0:00:07]} Bxe7 {[%emt 0:00:28]} 32. O-O-O {[%emt 0:00:40]} Bc5 {[%emt 0:02:15]} 33. cxd4 {[%emt 0:01:12]} Bb4 {[%emt 0:04:14]} 34. Ne5 {[%emt 0:00:16]} Qc3 {[%emt 0:00:04]} 35. Nd7+ {[%emt 0:01:42]} Kc8 {[%emt 0:00:05]} 36. Nb6+ {[%emt 0:00:59]} axb6 {[%emt 0:00:02]} 37. Qa8+ {[%emt 0:00:21]} Kc7 {[%emt 0:00:30]} 0-1

[Event "Haarlemse Meesters-IM 2018"]
[Site "Haarlem"]
[Date "2018.10.23"]
[Round "4"]
[White "Harff, Marcel"]
[Black "Vedder, Richard"]
[Result "0-1"]
[ECO "A30"]
[WhiteElo "2420"]
[BlackElo "2288"]
[Annotator "ChessBase"]
[PlyCount "54"]
[EventDate "2018.10.17"]
[EventType "tourn"]
[EventCountry "NED"]
[SourceTitle "playchess.com"]
[Source "ChessBase"]
[SourceQuality "1"]
[TimeControl "40/5400+30:1800+30"]

1. c4 {[%emt 0:00:00]} c5 {[%emt 0:00:00]} 2. b3 {[%emt 0:00:00]} Nf6 {[%emt 0:01:32]} 3. Bb2 {[%emt 0:00:08]} e6 {[%emt 0:00:07]} 4. e3 {[%emt 0:00:13]} b6 {[%emt 0:01:04]} 5. Nf3 {[%emt 0:00:42]} Bb7 {[%emt 0:00:07]} 6. Nc3 {[%emt 0:01:10]} Be7 {[%emt 0:00:58]} 7. d4 {[%emt 0:03:19]} cxd4 {[%emt 0:00:19]} 8. Nxd4 {[%emt 0:01:07]} O-O {[%emt 0:00:41]} 9. a3 {[%emt 0:06:32]} d6 {[%emt 0:06:06]} 10. Rg1 {[%emt 0:08:56]} Nbd7 {[%emt 0:04:54]} 11. g4 {[%emt 0:00:44]} Nc5 {[%emt 0:04:32]} 12. g5 {[%emt 0:00:33]} Nfe4 {[%emt 0:01:58]} 13. Nxe4 {[%emt 0:00:09]} Nxe4 {[%emt 0:05:47]} 14. Bg2 {[%emt 0:00:57]} Qd7 {[%emt 0:18:29]} 15. h4 {[%emt 0:05:33]} e5 {[%emt 0:04:51]} 16. Ne2 {[%emt 0:04:56]} Nc5 {[%emt 0:07:53]} 17. b4 {[%emt 0:02:54]} Bxg2 {[%emt 0:00:05]} 18. Rxg2 {[%emt 0:00:06]} Qc6 {[%emt 0:04:22]} 19. Qd5 {[%emt 0:08:25]} Qxd5 {[%emt 0:00:26]} 20. cxd5 {[%emt 0:00:09]} Nd3+ {[%emt 0:00:03]} 21. Kd2 {[%emt 0:04:55]} Nxb2 {[%emt 0:00:06]} 22. Nc3 {[%emt 0:02:13]} Rfc8 {[%emt 0:01:14]} 23. Ra2 {[%emt 0:00:10]} Nc4+ {[%emt 0:00:12]} 24. Kd3 {[%emt 0:00:03]} a6 {[%emt 0:02:27]} 25. a4 {[%emt 0:00:03]} Rc7 {[%emt 0:01:06]} 26. Rg4 {[%emt 0:00:37]} Rac8 {[%emt 0:00:56]} 27. Rc2 {[%emt 0:00:35]} Nb2+ {[%emt 0:00:00] Kd4 [%emt 00:00:03]} 0-1

[Event "Haarlemse Meesters-IM 2018"]
[Site "Haarlem"]
[Date "2018.10.23"]
[Round "4"]
[White "Van Kerkhof, David"]
[Black "Bosboom, Manuel"]
[Result "1/2-1/2"]
[ECO "B21"]
[WhiteElo "2371"]
[BlackElo "2404"]
[Annotator "ChessBase"]
[PlyCount "60"]
[EventDate "2018.10.17"]
[EventType "tourn"]
[EventCountry "NED"]
[SourceTitle "playchess.com"]
[Source "ChessBase"]
[SourceQuality "1"]
[TimeControl "40/5400+30:1800+30"]

1. e4 {[%emt 0:00:00]} c5 {[%emt 0:00:00]} 2. d4 {[%emt 0:00:00]} cxd4 {[%emt 0:00:10]} 3. c3 {[%emt 0:00:00]} d3 {[%emt 0:02:43]} 4. Bxd3 {[%emt 0:00:03]} d6 {[%emt 0:01:03]} 5. c4 {[%emt 0:00:55]} Nf6 {[%emt 0:02:01]} 6. h3 {[%emt 0:00:24]} Nbd7 {[%emt 0:05:14]} 7. Nc3 {[%emt 0:02:57]} e6 {[%emt 0:06:39]} 8. Be3 {[%emt 0:02:34]} a6 {[%emt 0:01:55]} 9. Nf3 {[%emt 0:04:17]} Be7 {[%emt 0:02:36]} 10. O-O {[%emt 0:01:36]} h6 {[%emt 0:03:31]} 11. Nd4 {[%emt 0:02:45]} g5 {[%emt 0:03:12]} 12. Rc1 {[%emt 0:14:31]} Ne5 {[%emt 0:01:40]} 13. Be2 {[%emt 0:01:00]} Bd7 {[%emt 0:02:10]} 14. Nf3 {[%emt 0:11:59]} Ng6 {[%emt 0:06:26]} 15. Qb3 {[%emt 0:12:18]} g4 {[%emt 0:03:54]} 16. hxg4 {[%emt 0:03:15]} Nxg4 {[%emt 0:00:43]} 17. Bb6 {[%emt 0:05:15]} Qb8 {[%emt 0:00:25]} 18. Nd4 {[%emt 0:08:35]} h5 {[%emt 0:03:12]} 19. g3 {[%emt 0:00:20]} Nf6 {[%emt 0:10:18]} 20. Rfe1 {[%emt 0:05:31]} h4 {[%emt 0:01:24]} 21. Nd5 {[%emt 0:00:16]} exd5 {[%emt 0:09:54]} 22. cxd5 {[%emt 0:01:23]} hxg3 {[%emt 0:02:30]} 23. Bc7 {[%emt 0:00:18]} gxf2+ {[%emt 0:00:29]} 24. Kxf2 {[%emt 0:00:03]} Nxe4+ {[%emt 0:02:57]} 25. Kg1 {[%emt 0:01:20]} Nf4 {[%emt 0:04:04]} 26. Bf3 {[%emt 0:03:00]} Nh3+ {[%emt 0:05:53]} 27. Kg2 {[%emt 0:00:39]} Nf4+ {[%emt 0:02:46]} 28. Kg1 {[%emt 0:00:02]} Rg8+ {[%emt 0:03:54]} 29. Kh2 {[%emt 0:00:37]} Rh8+ {[%emt 0:00:54]} 30. Kg1 {[%emt 0:00:09]} Rg8+ {[%emt 0:02:44]} 1/2-1/2

[Event "Haarlemse Meesters-IM 2018"]
[Site "Haarlem"]
[Date "2018.10.23"]
[Round "4"]
[White "Lenaerts, Lennert"]
[Black "Van Baar, Esper"]
[Result "1/2-1/2"]
[ECO "E36"]
[WhiteElo "2362"]
[BlackElo "2223"]
[Annotator "NA"]
[PlyCount "138"]
[EventDate "2018.10.17"]
[EventType "tourn"]
[EventCountry "NED"]
[SourceTitle "playchess.com"]
[Source "ChessBase"]
[SourceQuality "1"]
[TimeControl "40/5400+30:1800+30"]

1. d4 {[%emt 0:00:00]} Nf6 {[%emt 0:05:29]} 2. c4 {[%emt 0:00:00]} e6 {[%emt 0:00:11]} 3. Nc3 {[%emt 0:00:00]} Bb4 {[%emt 0:00:12]} 4. Qc2 {[%emt 0:00:04]} O-O {[%emt 0:00:11]} 5. a3 {[%emt 0:00:04]} Bxc3+ {[%emt 0:00:10]} 6. Qxc3 {[%emt 0:00:02]} d5 {[%emt 0:00:17] LiveBook: 769 Games} 7. Nf3 {[%emt 0:00:05]} dxc4 {[%emt 0:00:18]} 8. Qxc4 {[%emt 0:00:03]} b6 {[%emt 0:00:20]} 9. Bg5 {[%emt 0:00:02]} Ba6 {[%emt 0:00:14]} 10. Qa4 {[%emt 0:00:02]} Qd7 {[%emt 0:00:28]} 11. Qxd7 {[%emt 0:00:04]} Nbxd7 {[%emt 0:00:06]} 12. Bxf6 {[%emt 0:00:02]} gxf6 {[%emt 0:00:07]} 13. e3 {[%emt 0:00:04]} Bb7 {[%emt 0:00:14]} 14. Rc1 {[%emt 0:00:42]} Rfc8 {[%emt 0:02:39]} 15. Bb5 {[%emt 0:01:17]} c6 {[%emt 0:00:51]} 16. Be2 {[%emt 0:00:05]} c5 {[%emt 0:02:47]} 17. O-O {[%emt 0:00:26]} cxd4 {[%emt 0:04:05]} 18. Nxd4 {[%emt 0:00:15]} Nc5 {[%emt 0:07:24]} 19. b4 {[%emt 0:17:55]} Ne4 {[%emt 0:02:33]} 20. Bf3 {[%emt 0:08:29]} f5 {[%emt 0:22:34]} 21. Ne2 {[%emt 0:15:20]} a5 {[%emt 0:14:01]} 22. Rxc8+ {[%emt 0:03:35]} Rxc8 {[%emt 0:00:41]} 23. Bxe4 {[%emt 0:00:17]} Bxe4 {[%emt 0:01:43]} 24. Rc1 {[%emt 0:00:44]} Rxc1+ {[%emt 0:06:46]} 25. Nxc1 {[%emt 0:00:02]} axb4 {[%emt 0:01:26]} 26. axb4 {[%emt 0:00:02]} Kf8 {[%emt 0:00:52]} 27. Ne2 {[%emt 0:00:06]} Ke7 {[%emt 0:02:03]} 28. Nc3 {[%emt 0:00:06]} Kd6 {[%emt 0:01:03]} 29. f3 {[%emt 0:00:59]} Bd3 {[%emt 0:00:44]} 30. Kf2 {[%emt 0:00:09]} b5 {[%emt 0:10:42]} 31. Kg3 {[%emt 0:02:50]} Ke5 {[%emt 0:00:18]} 32. f4+ {[%emt 0:00:47]} Kf6 {[%emt 0:00:14]} 33. Kh4 {[%emt 0:01:27]} Kg6 {[%emt 0:01:55]} 34. Kg3 {[%emt 0:07:24]} Kf6 {[%emt 0:08:45]} 35. Kf3 {[%emt 0:00:02]} Ke7 {[%emt 0:02:41]} 36. e4 {[%emt 0:03:08]} fxe4+ {[%emt 0:00:53]} 37. Nxe4 {[%emt 0:00:02]} f5 {[%emt 0:01:28]} 38. Nc5 {[%emt 0:01:05]} Bf1 {[%emt 0:00:32]} 39. Kf2 {[%emt 0:00:02]} Bc4 {[%emt 0:00:22]} 40. Ke3 {[%emt 0:00:01]} Kd6 {[%emt 0:01:08]} 41. Kd4 {[%emt 0:30:26]} Bd5 {[%emt 0:04:38]} 42. g3 {[%emt 0:00:00]} Bf3 {[%emt 0:07:31]} 43. Nd3 {[%emt 0:00:00]} h5 {[%emt 0:02:10]} 44. Ne5 {[%emt 0:00:00]} Bd1 {[%emt 0:02:42]} 45. Nf7+ {[%emt 0:00:00]} Ke7 {[%emt 0:00:09]} 46. Ng5 {[%emt 0:00:00]} Kd6 {[%emt 0:00:13]} 47. Nh7 {[%emt 0:00:00]} Be2 {[%emt 0:02:00]} 48. Nf6 {[%emt 0:00:00]} Bd1 {[%emt 0:00:18]} 49. Ne8+ {[%emt 0:00:00]} Kd7 {[%emt 0:00:30]} 50. Ng7 {[%emt 0:00:00]} Kd6 {[%emt 0:00:06]} 51. h4 {[%emt 0:00:00]} Be2 {[%emt 0:00:14]} 52. Ne8+ {[%emt 0:00:00]} Kd7 {[%emt 0:00:14]} 53. Nf6+ {[%emt 0:00:00]} Kd6 {[%emt 0:00:06]} 54. Nh7 {[%emt 0:00:00]} Bd1 {[%emt 0:00:45]} 55. Nf8 {[%emt 0:00:00]} Be2 {[%emt 0:00:17]} 56. Ng6 {[%emt 0:00:00]} Bf3 {[%emt 0:02:13]} 57. Ne5 {[%emt 0:00:00]} Bg2 {[%emt 0:01:31]} 58. Nd3 {[%emt 0:00:00]} Bf3 {[%emt 0:03:19]} 59. Nc5 {[%emt 0:00:00]} Bg2 {[%emt 0:00:42]} 60. Nd3 {[%emt 0:00:00]} Bf3 {[%emt 0:00:12]} 61. Nc1 $11 {[%emt 0:00:00]} Bg2 {[%emt 0:00:55]} 62. Ne2 {[%emt 0:00:00]} Bf3 {[%emt 0:00:51]} 63. Nc3 {[%emt 0:00:00]} Bc6 {[%emt 0:00:05]} 64. Kd3 {[%emt 0:00:00]} Bd7 {[%emt 0:01:14]} 65. Ke3 {[%emt 0:00:00]} Bc6 {[%emt 0:00:24]} 66. Kd4 {[%emt 0:00:00]} Be8 {[%emt 0:01:16]} 67. Ne2 {[%emt 0:00:00]} Bc6 {[%emt 0:00:54]} 68. Nc1 {[%emt 0:00:00]} Bg2 {[%emt 0:00:32]} 69. Nd3 {[%emt 0:00:00]} Bf3 {[%emt 0:00:29] Ke4 [%emt 00:02:24] Ke5+} 1/2-1/2

[Event "Haarlemse Meesters-IM 2018"]
[Site "Haarlem"]
[Date "2018.10.23"]
[Round "4"]
[White "Gijswijt, Bart"]
[Black "Daeschler, Florian"]
[Result "1-0"]
[ECO "D37"]
[WhiteElo "2321"]
[BlackElo "2254"]
[Annotator "NA"]
[PlyCount "61"]
[EventDate "2018.10.17"]
[EventType "tourn"]
[EventCountry "NED"]
[SourceTitle "playchess.com"]
[Source "ChessBase"]
[SourceQuality "1"]
[TimeControl "40/5400+30:1800+30"]

1. d4 {[%emt 0:00:00]} d5 {[%emt 0:00:00]} 2. c4 {[%emt 0:00:00]} e6 {[%emt 0:00:00]} 3. Nf3 {[%emt 0:00:00]} Nf6 {[%emt 0:00:00]} 4. Nc3 {[%emt 0:00:17]} Be7 {[%emt 0:00:00]} 5. Bf4 {[%emt 0:00:45] LiveBook: 6666 Games} O-O {[%emt 0:00:02]} 6. e3 {[%emt 0:00:07]} b6 {[%emt 0:00:06]} 7. cxd5 {[%emt 0:09:30]} Nxd5 {[%emt 0:00:05]} 8. Nxd5 {[%emt 0:02:08]} Qxd5 {[%emt 0:00:08]} 9. a3 {[%emt 0:05:22]} Ba6 {[%emt 0:04:54]} 10. Bxa6 {[%emt 0:02:51]} (10. Be2 {[%emt 0:02:51]}) 10... Nxa6 {[%emt 0:05:20]} 11. Qa4 {[%emt 0:05:47]} Qa5+ {[%emt 0:05:26]} 12. Qxa5 {[%emt 0:00:24]} bxa5 {[%emt 0:00:01]} 13. Ne5 {[%emt 0:07:08]} Bd6 {[%emt 0:07:22]} (13... c5 $14) 14. Nc6 {[%emt 0:02:11]} Bxf4 {[%emt 0:05:47]} 15. exf4 {[%emt 0:00:11]} f6 {[%emt 0:04:11]} 16. Rc1 {[%emt 0:02:37]} Kf7 {[%emt 0:04:01]} (16... a4 {keeps fighting.} 17. O-O Nb8) 17. Kd2 {[%emt 0:06:37]} Ke8 {[%emt 0:08:56]} 18. Rc4 {[%emt 0:07:49]} Kd7 {[%emt 0:00:29]} 19. Rhc1 {[%emt 0:00:31]} Rg8 {[%emt 0:02:58]} 20. h4 {[%emt 0:04:48]} h6 {[%emt 0:02:36]} 21. g3 $18 {[%emt 0:09:07]} g5 {[%emt 0:06:55]} 22. hxg5 {[%emt 0:00:48]} hxg5 {[%emt 0:00:04]} 23. Rh1 {[%emt 0:01:48]} Kd6 {[%emt 0:11:15]} 24. Nxa5 {[%emt 0:04:15]} Rab8 {[%emt 0:03:13]} 25. Rc6+ {[%emt 0:01:49]} Kd5 {[%emt 0:00:04]} 26. Rxa6 {[%emt 0:00:55]} Rxb2+ {[%emt 0:00:07]} 27. Ke3 {[%emt 0:05:27]} gxf4+ {[%emt 0:07:18]} 28. gxf4 {[%emt 0:00:03]} Rc2 {[%emt 0:01:27]} 29. Kd3 {[%emt 0:05:20]} Rxf2 {[%emt 0:01:09]} 30. Nc4 {[%emt 0:00:14]} c6 {[%emt 0:00:54]} 31. Ra5+ {[%emt 0:00:10]} 1-0